bitfinex-derivatives/quotes_ETHF0:USTF0_20250320
["timestamp","ask_amount","ask_price","bid_price","bid_amount"]
[1742438239859,1.49087,2031.1,2030.9,2.07900789]
[1742438240266,0.7033,2031.1,2031.0,2.12201]
[1742438240469,1.49087,2031.1,2031.0,2.12201]
[1742438241466,0.7033,2031.1,2031.0,2.12201]
[1742438241772,0.78755,2031.2,2031.0,1.3344]
[1742438241962,4.02547,2031.4,2031.2,0.78753]
[1742438242164,0.78753,2031.2,2031.0,0.7876]
[1742438242365,0.78753,2031.2,2031.0,2.122]
[1742438242869,0.78761,2031.0,2030.9,0.00738789]
[1742438243966,0.78761,2031.0,2030.9,1.39478789]
[1742438244168,0.78761,2031.0,2030.9,2.18243789]
[1742438244363,0.78761,2031.0,2030.9,1.39478789]
[1742438244766,1.3352,2031.1,2030.9,1.39478789]
[1742438244969,0.78761,2031.0,2030.9,2.18241789]
[1742438245173,0.78761,2031.0,2030.9,0.00738789]
[1742438245765,1.3352,2031.1,2030.9,0.79503789]
[1742438246069,2.1228,2031.1,2030.9,2.18240789]
[1742438246573,1.3352,2031.1,2031.0,0.78761]
[1742438246770,1.3352,2031.1,2031.0,2.18551]
[1742438246975,2.12277,2031.1,2031.0,1.3979]
[1742438247167,1.3352,2031.1,2031.0,2.18551]
[1742438247772,2.6478,2031.1,2031.0,2.18551]
[1742438247966,3.43537,2031.1,2031.0,2.18551]
[1742438248368,3.43537,2031.1,2031.0,1.3979]
[1742438248966,2.6478,2031.1,2031.0,2.18551]
[1742438249366,3.43537,2031.1,2031.0,1.3979]
[1742438249569,0.78761,2031.0,2030.9,0.00738789]
[1742438249768,2.17031,2031.0,2030.9,0.00738789]
[1742438250374,2.17031,2031.0,2030.9,0.79503789]
[1742438250577,2.17031,2031.0,2030.9,0.00738789]
[1742438250780,2.17031,2031.0,2030.9,1.39958789]
[1742438251073,1.3827,2031.0,2030.9,2.18723789]
[1742438252875,2.17031,2031.0,2030.9,0.00738789]
[1742438255181,5.40831,2031.0,2030.9,0.00738789]
[1742438260579,5.40831,2031.0,2030.2,1.9698]
[1742438260580,0.78791,2030.3,2030.2,3.2078]
[1742438260777,0.78791,2030.3,2030.2,4.64692]
[1742438260979,0.78791,2030.3,2030.2,5.28508403]
[1742438261180,0.78791,2030.3,2030.2,4.49716403]
[1742438261382,0.78791,2030.3,2030.2,5.87876403]
[1742438261582,2.11014,2030.4,2030.3,0.78788]
[1742438261783,2.11014,2030.4,2030.3,2.12988]
[1742438262481,2.11014,2030.4,2030.3,1.342]
[1742438262780,2.11014,2030.4,2030.3,2.12988]
[1742438264083,2.11014,2030.4,2030.3,1.342]
[1742438266692,0.78788,2030.3,2030.2,3.859]
[1742438266876,2.07468,2030.3,2030.2,3.859]
[1742438267082,2.07468,2030.3,2030.2,5.2354]
[1742438267683,2.07468,2030.3,2030.2,6.02332]
[1742438268293,2.07468,2030.3,2030.2,5.2354]
[1742438268493,2.07468,2030.3,2030.2,6.02332]
[1742438271282,1.2868,2030.3,2030.2,6.02332]
[1742438271490,0.00732588,2030.5,2030.4,0.78784]
[1742438272193,0.00732588,2030.5,2030.4,1.49274]
[1742438273792,0.00732588,2030.5,2030.4,2.89024]
[1742438275699,0.00732588,2030.5,2030.4,3.52720562]
[1742438276791,0.78769,2030.8,2030.7,0.78769]
[1742438277397,2.16668,2030.9,2030.7,1.3742]
[1742438277589,2.16668,2030.9,2030.8,0.6465]
[1742438277794,0.78768,2030.9,2030.8,0.6465]
[1742438278093,0.78768,2030.9,2030.8,2.0207]
[1742438280104,5.96,2031.0,2030.8,2.0207]
[1742438280302,6.74761,2031.0,2030.9,2.17015]
[1742438281000,5.96,2031.0,2030.9,2.17015]
[1742438281903,6.74761,2031.0,2030.9,2.17015]
[1742438282205,0.78765,2030.9,2030.8,0.6465]
[1742438282399,0.78769,2030.8,2030.7,1.3825]
[1742438282704,0.78769,2030.8,2030.7,2.0804]
[1742438282998,0.78769,2030.8,2030.7,2.86809]
[1742438283604,1.44996,2030.9,2030.8,0.78769]
[1742438283802,0.78766,2030.9,2030.8,2.11659]
[1742438284200,9.8392,2031.0,2030.9,0.78765]
[1742438284201,5.96,2031.0,2030.9,0.78765]
[1742438284403,5.96,2031.0,2030.9,2.11655]
[1742438285408,6.74761,2031.0,2030.9,2.11655]
[1742438286498,5.96,2031.0,2030.9,2.11655]
[1742438286699,6.74761,2031.0,2030.9,2.11655]
[1742438286901,5.96,2031.0,2030.9,2.11655]
[1742438287098,5.96,2031.5,2031.4,0.78746]
[1742438287299,0.78746,2031.4,2031.3,3.2078]
[1742438287608,0.78746,2031.4,2031.3,4.5865]
[1742438287812,0.78746,2031.4,2031.3,3.2078]
[1742438288106,4.02546,2031.4,2031.3,3.2078]
[1742438288306,0.78749,2031.3,2031.2,0.00738789]
[1742438288710,0.78761,2031.0,2030.9,3.2078]
[1742438289213,0.78761,2031.0,2030.9,3.99543]
[1742438289608,0.78761,2031.0,2030.9,3.2078]
[1742438289907,0.78761,2031.0,2030.9,3.99545]
[1742438290211,0.78761,2031.0,2030.9,5.37045]
[1742438290903,0.78761,2031.0,2030.9,4.5828]
[1742438291107,0.78761,2031.0,2030.9,3.2078]
[1742438292000,0.78765,2030.9,2030.8,2.16269]
[1742438292513,0.78762,2031.0,2030.8,2.16267]
[1742438292714,0.78762,2031.0,2030.9,1.3428]
[1742438293807,0.6602,2031.1,2030.7,0.70888789]
[1742438294004,0.78766,2030.9,2030.8,2.13049]
[1742438294203,0.6602,2031.1,2030.7,0.70888789]
[1742438294204,3.237,2031.0,2030.7,0.00738789]
[1742438294408,2.14309,2030.8,2030.7,0.00738789]
[1742438296916,2.14309,2030.8,2030.7,1.34878789]
[1742438298411,1.3554,2030.8,2030.7,1.34878789]
[1742438298614,0.6579,2030.8,2030.7,2.13651789]
[1742438298913,1.44559,2030.8,2030.7,0.00738789]
[1742438299217,2.78619,2030.8,2030.7,0.00738789]
[1742438299708,6.02319,2030.8,2030.7,0.00738789]
[1742438299914,0.78792,2030.2,2030.0,3.99579]
[1742438300210,2.0404,2030.1,2030.0,3.99579]
[1742438300416,2.0404,2030.1,2030.0,5.36299]
[1742438300617,2.0404,2030.1,2030.0,6.05649]
[1742438300914,2.0404,2030.1,2030.0,5.2685]
[1742438301506,2.0404,2030.1,2030.0,6.0565]
[1742438301919,1.3406,2030.1,2030.0,6.0565]
[1742438302508,2.12856,2030.1,2030.0,5.2685]
[1742438302714,1.3406,2030.1,2030.0,6.0565]
[1742438303114,2.12856,2030.1,2030.0,3.2078]
[1742438303304,2.12856,2030.1,2029.9,0.6371]
[1742438303305,0.788,2030.0,2029.9,2.77143]
[1742438303507,2.1733,2030.0,2029.9,2.77143]
[1742438304414,1.3853,2030.0,2029.9,2.77143]
[1742438305015,2.1733,2030.0,2029.9,1.9834]
[1742438305217,2.8192,2030.0,2029.9,1.9834]
[1742438306313,0.78804,2029.9,2029.8,0.00738789]
[1742438306515,1.3145,2029.9,2029.8,2.14536789]
[1742438308321,2.10254,2029.9,2029.8,2.14536789]
[1742438308526,2.10254,2029.9,2029.8,1.35728789]
[1742438309214,2.10254,2029.9,2029.8,2.14536789]
[1742438309420,2.10254,2029.9,2029.8,1.35728789]
[1742438309622,1.3145,2029.9,2029.8,2.14536789]
[1742438310415,2.10254,2029.9,2029.8,2.14536789]
[1742438310610,1.3145,2029.9,2029.8,2.14536789]
[1742438314118,2.10254,2029.9,2029.8,2.14536789]
[1742438314829,2.10254,2029.9,2029.8,0.00738789]
[1742438315521,0.78815,2029.6,2029.5,1.375]
[1742438315921,0.78819,2029.5,2029.4,44.6867]
[1742438316120,1.48899,2029.5,2029.4,46.0617]
[1742438317727,1.48899,2029.5,2029.4,46.84993]
[1742438318121,1.3837,2029.6,2029.5,0.78819]
[1742438318425,3.238,2029.8,2029.7,0.78812]
[1742438318426,4.0261,2029.8,2029.7,0.78812]
[1742438319126,3.238,2029.8,2029.7,5.39932]
[1742438319327,2.15125,2029.9,2029.8,0.78808]
[1742438319528,2.15125,2029.9,2029.8,2.72848]
[1742438319529,1.3632,2029.9,2029.8,2.72848]
[1742438320525,2.15124,2029.9,2029.8,2.72848]
[1742438320827,1.3632,2029.9,2029.8,2.72848]
[1742438321032,2.74479,2030.1,2029.9,0.78804]
[1742438321231,2.74479,2030.1,2030.0,2.093]
[1742438321423,1.43809,2030.1,2030.0,2.093]
[1742438322729,1.43809,2030.1,2030.0,1.305]
[1742438324537,0.788,2030.0,2029.9,0.6873]
[1742438324738,0.788,2030.0,2029.9,2.011]
[1742438325036,0.78804,2029.9,2029.8,2.74715]
[1742438326036,0.6501,2030.1,2030.0,0.788]
[1742438326037,1.43808,2030.1,2030.0,0.788]
[1742438326436,0.78798,2030.1,2030.0,0.788]
[1742438326640,0.78798,2030.1,2030.0,0.6638]
[1742438327132,0.78798,2030.1,2030.0,2.8387]
[1742438327337,0.78798,2030.1,2030.0,2.0507]
[1742438327936,0.78798,2030.1,2030.0,2.8387]
[1742438328835,0.78798,2030.1,2030.0,2.0507]
[1742438330337,0.78798,2030.1,2030.0,2.8387]
[1742438330537,0.78798,2030.1,2030.0,2.0507]
[1742438331137,0.78804,2029.9,2029.8,1.42345]
[1742438331338,0.78804,2029.9,2029.8,2.09085]
[1742438331940,0.78804,2029.9,2029.8,2.72974279]
[1742438332537,0.78804,2029.9,2029.8,4.02914279]
[1742438333041,9.73733789,2030.2,2029.9,0.78803]
[1742438333042,0.78803,2030.0,2029.9,0.78803]
[1742438333236,0.78803,2030.0,2029.9,2.08743]
[1742438333844,0.78803,2030.0,2029.9,2.72632279]
[1742438334538,4.02603,2030.0,2029.9,0.63889279]
[1742438335127,0.78815,2029.6,2029.5,1.2994]
[1742438335840,0.78815,2029.6,2029.5,2.08759]
[1742438336040,0.78815,2029.6,2029.5,2.72680098]
[1742438337134,0.7881,2029.8,2029.7,0.7881]
[1742438337342,0.7881,2029.8,2029.7,0.78808]
[1742438337529,1.406,2029.8,2029.7,1.42729098]
[1742438337734,5.96,2029.9,2029.8,0.78808]
[1742438337934,6.74804,2029.9,2029.8,0.78808]
[1742438338144,6.74804,2029.9,2029.8,2.78519098]
[1742438338641,6.74804,2029.9,2029.8,1.99711098]
[1742438340042,6.74804,2029.9,2029.8,2.78519098]
[1742438340940,6.74804,2029.9,2029.8,1.99711098]
[1742438341138,0.78804,2029.9,2029.8,1.99711098]
[1742438342136,0.78808,2029.8,2029.7,3.2078]
[1742438342441,2.73038,2029.8,2029.7,3.2078]
[1742438342836,0.78812,2029.7,2029.6,1.3527]
[1742438343037,2.06112,2029.7,2029.6,2.14085]
[1742438343238,2.06112,2029.7,2029.6,2.78002324]
[1742438345045,2.06112,2029.7,2029.6,1.99187324]
[1742438345236,2.06112,2029.7,2029.6,2.78002324]
[1742438345641,2.06112,2029.7,2029.6,1.99187324]
[1742438346043,2.06112,2029.7,2029.6,2.78002324]
[1742438347251,1.273,2029.7,2029.6,2.78002324]
[1742438348549,1.273,2029.7,2029.6,5.98782324]
[1742438349048,0.78804,2029.9,2029.8,0.78804]
[1742438349246,2.07554,2029.9,2029.8,0.78804]
[1742438349446,2.07554,2029.9,2029.8,1.42721324]
[1742438349647,5.96,2030.0,2029.9,0.78804]
[1742438349946,5.96,2030.0,2029.9,5.92284]
[1742438350244,6.748,2030.0,2029.9,6.56201324]
[1742438350643,6.748,2030.0,2029.9,5.11977324]
[1742438350951,7.4055,2030.0,2029.9,3.84697324]
[1742438351451,8.6921,2030.0,2029.9,3.2078]
[1742438352153,8.6921,2030.0,2029.4,3.2078]
[1742438352154,1.97022,2029.8,2029.4,3.2078]
[1742438352448,0.78827,2029.3,2029.2,0.00738789]
[1742438352943,0.78827,2029.3,2029.2,0.64751873]
[1742438353151,2.07627,2029.3,2029.2,0.64751873]
[1742438353855,2.07627,2029.3,2029.2,0.00738789]
[1742438356050,2.07627,2029.3,2029.2,1.39378789]
[1742438357949,2.07627,2029.3,2029.2,2.18209789]
[1742438358351,1.288,2029.3,2029.2,2.18209789]
[1742438359252,3.239,2029.6,2029.4,0.78819]
[1742438359253,4.02718,2029.6,2029.4,0.78819]
[1742438359452,4.02718,2029.6,2029.5,1.4044]
[1742438359453,0.78818,2029.6,2029.5,1.4044]
[1742438359849,10.5615,2029.7,2029.5,1.4044]
[1742438360057,5.96,2029.7,2029.6,0.78815]
[1742438360255,0.78815,2029.6,2029.5,1.4044]
[1742438360455,5.96,2029.7,2029.3,3.2078]
[1742438360658,0.78823,2029.4,2029.3,3.2078]
[1742438361163,2.18383,2029.4,2029.3,3.2078]
[1742438363263,0.78827,2029.3,2029.2,0.00738789]
[1742438363463,5.37317,2029.3,2029.2,0.00738789]
[1742438363660,0.78843,2028.9,2028.8,2.0071]
[1742438363860,0.78842,2029.0,2028.8,1.42947]
[1742438364066,2.13433,2028.9,2028.8,1.42947]
[1742438365062,3.24638789,2029.1,2028.8,1.28008561]
[1742438365255,0.00738789,2029.1,2029.0,3.2078]
[1742438365564,0.00738789,2029.1,2029.0,4.63527561]
[1742438366258,1.41028789,2029.1,2029.0,4.63527561]
[1742438366658,2.19863789,2029.1,2029.0,4.63527561]
[1742438367057,0.00738789,2029.1,2029.0,4.63527561]
[1742438369565,1.29198789,2029.1,2029.0,4.63527561]
[1742438369863,2.08033789,2029.1,2029.0,4.63527561]
[1742438370067,1.29198789,2029.1,2029.0,4.63527561]
[1742438370963,0.00738789,2029.1,2029.0,4.63527561]
[1742438372664,2.13903789,2029.1,2029.0,3.84688561]
[1742438372868,2.13903789,2029.1,2029.0,4.54588561]
[1742438373264,1.35068789,2029.1,2029.0,5.33427561]
[1742438373964,0.00738789,2029.1,2029.0,5.33427561]
[1742438374763,0.79573789,2029.1,2029.0,5.33427561]
[1742438375253,0.79573789,2029.1,2029.0,4.54588561]
[1742438375458,2.08153789,2029.1,2029.0,3.9068]
[1742438376468,3.38453789,2029.1,2029.0,3.9068]
[1742438376858,3.38453789,2029.1,2029.0,3.2078]
[1742438377054,0.78847,2028.8,2028.7,3.8887]
[1742438377266,0.78847,2028.8,2028.7,4.6772]
[1742438377571,0.78847,2028.8,2028.7,3.8887]
[1742438377867,0.78847,2028.8,2028.7,5.9767]
[1742438378366,0.78847,2028.8,2028.7,5.82700566]
[1742438378969,1.408,2028.9,2028.7,6.61548566]
[1742438379268,2.19643,2028.9,2028.8,1.2995]
[1742438380869,2.19643,2028.9,2028.8,1.93878346]
[1742438385468,2.19643,2028.9,2028.8,2.72725346]
[1742438386968,2.19643,2028.9,2028.8,1.93878346]
[1742438387470,2.19643,2028.9,2028.8,2.72725346]
[1742438387666,0.00738789,2029.1,2029.0,0.78839]
[1742438387973,0.00738789,2029.1,2029.0,3.99619]
[1742438388164,0.00738789,2029.1,2029.0,5.32729]
[1742438388669,0.00738789,2029.1,2029.0,5.96657346]
[1742438389272,0.00738789,2029.1,2029.0,6.63772753]
[1742438391871,0.78833,2029.2,2029.1,0.78833]
[1742438392068,0.78833,2029.2,2029.1,1.3098]
[1742438392573,2.83023,2029.2,2029.1,1.94908346]
[1742438393666,2.18523,2029.2,2029.1,2.73743346]
[1742438393971,2.18523,2029.2,2029.1,3.39873346]
[1742438395859,2.18523,2029.2,2029.1,2.61038346]
[1742438396266,2.18523,2029.2,2029.1,3.39873346]
[1742438397068,1.3969,2029.2,2029.1,3.39873346]
[1742438400076,2.18521,2029.2,2029.1,3.39873346]
[1742438400375,2.18521,2029.2,2029.1,1.94908346]
[1742438400766,2.18521,2029.2,2029.1,0.63928346]
[1742438401271,2.18521,2029.2,2029.1,2.16815]
[1742438401476,0.00738789,2029.4,2029.3,0.78827]
[1742438402173,0.00738789,2029.4,2029.3,2.06720363]
[1742438402873,0.00738789,2029.4,2029.3,3.37130363]
[1742438403075,1.39248789,2029.4,2029.3,44.17130363]
[1742438403877,1.39248789,2029.4,2029.3,47.37910363]
[1742438404469,0.00738789,2029.4,2029.3,6.57910363]
[1742438405665,0.79561789,2029.4,2029.3,3.84723363]
[1742438405863,1.48941789,2029.4,2029.3,3.84723363]
[1742438406067,1.48941789,2029.4,2029.3,3.2078]
[1742438406278,2.81611789,2029.4,2029.3,3.2078]
[1742438406880,2.02788789,2029.4,2029.3,3.2078]
[1742438407176,2.02788789,2029.4,2029.3,3.99607]
[1742438407377,0.00738789,2029.4,2029.3,7.23507]
[1742438407578,0.00738789,2029.4,2029.3,7.87447599]
[1742438407770,0.00738789,2029.4,2029.3,9.88607599]
[1742438408365,0.00738789,2029.4,2029.3,10.5575497]
[1742438408773,0.00738789,2029.4,2029.3,9.88607599]
[1742438409165,1.34408789,2029.4,2029.3,9.88607599]
[1742438413373,1.34408789,2029.4,2029.3,6.64707599]
[1742438416170,1.34408789,2029.4,2029.3,7.31891083]
[1742438418075,1.34408789,2029.4,2029.3,7.31927306]
[1742438418478,3.2078,2030.1,2029.4,1.97053]
[1742438418676,1.3014,2029.6,2029.5,2.15969]
[1742438419070,1.3014,2029.6,2029.5,44.26959599]
[1742438419279,2.08955,2029.6,2029.5,41.43940599]
[1742438419686,2.08955,2029.6,2029.5,0.63940599]
[1742438420385,0.78819,2029.5,2029.4,3.2078]
[1742438420570,3.44969,2029.5,2029.4,3.2078]
[1742438420776,3.44969,2029.5,2029.4,3.84806867]
[1742438421183,3.44969,2029.5,2029.4,0.64026867]
[1742438422684,9.15749,2029.5,2029.4,0.64026867]
[1742438422875,0.78831,2029.2,2029.1,3.2078]
[1742438423072,4.02631,2029.2,2029.1,3.2078]
[1742438423884,5.43441,2029.2,2029.1,3.2078]
[1742438424075,0.78839,2029.0,2028.9,0.78842]
[1742438424284,2.84346,2029.1,2029.0,0.78839]
[1742438424784,2.84346,2029.1,2029.0,0.6391]
[1742438425886,2.19646,2029.1,2029.0,2.70279]
[1742438426473,1.4081,2029.1,2029.0,2.70279]
[1742438427889,5.96,2029.3,2029.2,0.78831]
[1742438428588,7.3087,2029.3,2029.2,2.15501]
[1742438428988,1.3487,2029.3,2029.2,2.15501]
[1742438431494,2.13697,2029.3,2029.2,1.3667]
[1742438431792,0.78831,2029.2,2029.1,3.2078]
[1742438432092,2.75981,2029.2,2029.1,3.2078]
[1742438432592,2.75981,2029.2,2029.1,4.559]
[1742438432791,2.75981,2029.2,2029.1,5.34735]
[1742438433486,1.2726,2029.2,2029.1,5.34735]
[1742438435092,1.2726,2029.2,2029.1,5.98230388]
[1742438436188,3.2078,2029.5,2029.4,0.78823]
[1742438436495,4.5716,2029.5,2029.4,0.78823]
[1742438437295,1.3638,2029.5,2029.4,5.36833]
[1742438437690,1.3638,2029.5,2029.4,6.00305281]
[1742438438592,1.3638,2029.5,2029.4,46.80305281]
[1742438439698,5.96,2029.7,2029.6,0.78815]
[1742438439896,7.2851,2029.7,2029.6,0.78815]
[1742438440297,7.2851,2029.7,2029.6,2.15595]
[1742438440699,8.07322,2029.7,2029.6,1.3678]
[1742438440900,0.78815,2029.6,2029.5,1.4098]
[1742438441102,2.16575,2029.6,2029.5,1.4098]
[1742438441695,0.78819,2029.5,2029.4,4.5756]
[1742438441896,2.16579,2029.5,2029.4,4.6151]
[1742438442099,3.46019,2029.5,2029.4,3.2078]
[1742438442802,3.46019,2029.5,2029.4,4.6151]
[1742438443004,3.46019,2029.5,2029.4,3.2078]
[1742438445304,0.78823,2029.4,2029.3,2.19556]
[1742438445505,2.15393,2029.4,2029.3,0.78826]
[1742438447708,0.78829,2029.3,2029.2,0.78831]
[1742438447903,1.2817,2029.3,2029.2,0.78831]
[1742438448406,1.2817,2029.3,2029.2,1.42297037]
[1742438449804,2.06997,2029.3,2029.2,1.42297037]
[1742438450508,1.2817,2029.3,2029.2,1.42297037]
[1742438450904,9.198,2029.7,2029.2,0.63466037]
[1742438451106,1.3333,2029.4,2029.3,1.46637]
[1742438451505,0.78817,2029.6,2029.4,0.7882]
[1742438451702,1.3333,2029.5,2029.4,1.4564]
[1742438451900,2.12149,2029.5,2029.4,1.4564]
[1742438452610,1.3333,2029.5,2029.4,1.4564]
[1742438452901,1.3333,2029.5,2029.4,2.09091404]
[1742438453609,1.3898,2029.6,2029.5,0.78817]
[1742438454401,1.3898,2029.6,2029.5,1.42268404]
[1742438457804,1.3898,2029.6,2029.5,2.78168404]
[1742438458406,2.17795,2029.6,2029.5,2.78168404]
[1742438458606,2.17795,2029.6,2029.5,1.42270404]
[1742438458804,2.17795,2029.6,2029.5,0.63451404]
[1742438459207,2.17795,2029.6,2029.5,0.78819]
[1742438459407,2.17795,2029.6,2029.4,6.02321]
[1742438459607,0.78815,2029.6,2029.5,1.3795]
[1742438460217,0.78819,2029.5,2029.4,3.2078]
[1742438460410,1.47139,2029.5,2029.4,3.2078]
[1742438460619,2.12869,2029.5,2029.4,3.2078]
[1742438461214,1.3405,2029.5,2029.2,1.3795]
[1742438461407,2.12872,2029.5,2029.3,0.78826]
[1742438461607,0.78823,2029.4,2029.3,0.78826]
[1742438462103,0.78831,2029.2,2029.1,3.8798]
[1742438462509,0.78831,2029.2,2029.1,3.2078]
[1742438463205,0.78831,2029.2,2029.1,3.84336023]
[1742438465717,0.78831,2029.2,2029.1,3.2078]
[1742438466716,0.78838,2029.1,2028.9,2.13492]
[1742438466918,0.78838,2029.1,2029.0,1.3145]
[1742438467120,2.10158,2029.1,2029.0,1.3145]
[1742438467821,1.3132,2029.1,2028.8,1.47335]
[1742438468023,1.3132,2029.1,2028.8,2.78785]
[1742438468217,0.78843,2028.9,2028.8,1.9994]
[1742438468514,0.78842,2029.0,2028.8,1.9994]
[1742438468720,0.78842,2029.0,2028.9,2.77689397]
[1742438469823,0.78842,2029.0,2028.9,2.14153]
[1742438470724,0.78842,2029.0,2028.9,2.77687434]
[1742438471823,0.78842,2029.0,2028.9,1.98844434]
[1742438472220,1.48552,2029.0,2028.9,0.63534434]
[1742438472427,0.78843,2028.9,2028.8,0.6849]
[1742438472718,0.78843,2028.9,2028.8,2.0929]
[1742438473517,0.78843,2028.9,2028.8,1.408]
[1742438473713,0.78847,2028.8,2028.7,3.899]
[1742438473918,0.78845,2028.9,2028.7,6.0955]
[1742438474118,0.78845,2028.9,2028.8,1.408]
[1742438475616,0.78847,2028.8,2028.7,3.899]
[1742438475924,3.238,2029.0,2028.9,0.78843]
[1742438476219,0.78838,2029.1,2029.0,0.78839]
[1742438476909,0.78838,2029.1,2028.9,1.457]
[1742438477111,0.78838,2029.1,2029.0,2.17479]
[1742438477515,3.2078,2029.2,2029.0,1.3864]
[1742438477824,3.2078,2029.2,2029.1,2.75755]
[1742438478022,0.78829,2029.3,2029.1,2.75755]
[1742438478221,0.78831,2029.2,2029.1,1.48585]
[1742438478527,0.7883,2029.3,2029.1,1.48585]
[1742438478722,2.1973,2029.3,2029.2,1.2717]
[1742438479019,1.409,2029.3,2029.2,2.06001]
[1742438480731,3.2078,2029.7,2029.2,1.2717]
[1742438480922,1.309,2029.6,2029.5,0.78817]
[1742438481123,3.99594,2029.7,2029.6,0.78815]
[1742438481421,0.78816,2029.6,2029.5,0.78817]
[1742438481621,2.09716,2029.6,2029.5,0.6427]
[1742438482126,2.09716,2029.6,2029.5,1.9183]
[1742438482326,2.09716,2029.6,2029.4,40.8]
[1742438482327,0.78819,2029.5,2029.4,40.8]
[1742438482527,2.09719,2029.5,2029.4,42.0756]
[1742438483029,2.09719,2029.5,2029.4,1.2756]
[1742438483222,2.09719,2029.5,2029.4,2.06383]
[1742438484628,2.09719,2029.5,2029.4,1.2756]
[1742438485326,2.09719,2029.5,2029.4,2.06383]
[1742438486325,1.309,2029.5,2029.4,2.06383]
[1742438486534,0.78815,2029.7,2029.6,0.78815]
[1742438488030,2.14735,2029.7,2029.6,0.78815]
[1742438488531,0.78815,2029.6,2029.5,1.42786]
[1742438488719,0.78815,2029.7,2029.6,0.78815]
[1742438489123,2.14735,2029.7,2029.6,2.16395]
[1742438494450,2.14735,2029.7,2029.6,2.80065]
[1742438495543,1.3592,2029.7,2029.4,3.2078]
[1742438495748,0.78819,2029.5,2029.4,3.2078]
[1742438496146,2.83289,2029.5,2029.4,3.2078]
[1742438496444,2.83289,2029.5,2029.4,4.4922]
[1742438496853,2.83289,2029.5,2029.4,5.28043]
[1742438497650,1.3744,2029.5,2029.4,5.28043]
[1742438498449,1.3744,2029.5,2029.4,5.91477228]
[1742438500952,0.00738789,2029.8,2029.7,0.78812]
[1742438501154,0.00738789,2029.8,2029.6,0.78812]
[1742438501450,0.78812,2029.7,2029.6,1.42672]
[1742438501853,0.79549789,2029.8,2029.7,0.78812]
[1742438502049,0.00738789,2029.8,2029.7,3.99592]
[1742438502258,0.00738789,2029.8,2029.7,5.35342]
[1742438502647,1.3292,2030.0,2029.9,0.78804]
[1742438503152,12.4048,2030.2,2030.0,0.78796]
[1742438503343,3.2078,2030.5,2030.1,1.2733]
[1742438503544,0.78785,2030.4,2030.1,1.2733]
[1742438503745,0.78785,2030.4,2030.2,0.78792]
[1742438504347,0.00738789,2030.5,2030.4,0.78784]
[1742438504551,1.33658789,2030.5,2030.4,0.78784]
[1742438504749,1.33658789,2030.5,2030.4,2.14534]
[1742438506444,0.00738789,2030.5,2030.4,2.14534]
[1742438506653,0.00738789,2030.5,2030.4,5.38134]
[1742438508258,1.34888789,2030.5,2030.4,5.38134]
[1742438508449,2.13668789,2030.5,2030.4,5.38134]
[1742438508648,0.78784,2030.4,2030.3,3.2078]
[1742438508851,2.12934,2030.4,2030.3,3.2078]
[1742438509059,2.12934,2030.4,2030.3,4.5208]
[1742438509556,2.12934,2030.4,2030.3,3.2078]
[1742438510248,2.12934,2030.4,2030.3,5.30868]
[1742438510454,1.3415,2030.4,2030.3,5.30868]
[1742438512563,2.12934,2030.4,2030.3,5.30868]
[1742438512859,1.3415,2030.4,2030.3,5.30868]
[1742438513058,2.12934,2030.4,2030.3,5.30868]
[1742438513357,1.3415,2030.4,2030.3,5.30868]
[1742438513557,1.3415,2030.4,2030.3,2.10088]
[1742438514661,2.12934,2030.4,2030.3,2.10088]
[1742438515153,2.12934,2030.4,2030.3,1.313]
[1742438516461,2.12937,2030.4,2030.2,8.5306]
[1742438516762,2.16018,2030.3,2030.2,4.5067]
[1742438517166,2.16018,2030.3,2030.2,3.2078]
[1742438517558,5.39518,2030.3,2030.2,3.2078]
[1742438519258,5.39518,2030.3,2030.2,3.99572]
[1742438519668,1.3723,2030.3,2030.2,3.99572]
[1742438519963,0.00738789,2030.5,2030.4,0.78784]
[1742438520165,1.38238789,2030.5,2030.4,0.78784]
[1742438520361,0.00738789,2030.5,2030.4,2.18014]
[1742438520566,0.00738789,2030.5,2030.4,46.21514]
[1742438522662,0.6436,2030.9,2030.4,46.21514]
[1742438522663,0.6436,2030.9,2030.7,0.78771]
[1742438522870,1.3321,2030.8,2030.7,0.78771]
[1742438523070,1.3321,2030.8,2030.7,2.18001]
[1742438523677,2.11981,2030.8,2030.7,1.3923]
[1742438523864,2.11981,2030.8,2030.7,0.78773]
[1742438524056,1.3321,2030.8,2030.7,2.06403]
[1742438524369,1.3321,2030.8,2030.7,3.38363]
[1742438527569,0.78759,2031.1,2031.0,0.78761]
[1742438527965,0.78764,2031.0,2030.9,0.78764]
[1742438528160,6.51396,2031.2,2030.7,1.3196]
[1742438528361,0.6459,2030.9,2030.7,1.3196]
[1742438528676,0.78769,2030.8,2030.7,2.1073]
[1742438528862,1.2837,2030.8,2030.7,2.6269]
[1742438529070,2.07139,2030.8,2030.7,0.78769]
[1742438529270,2.74969,2030.8,2030.7,0.78769]
[1742438529567,1.962,2030.8,2030.7,0.78769]
[1742438529971,1.962,2030.8,2030.7,2.12189]
[1742438530167,1.2837,2030.8,2030.7,2.12189]
[1742438534772,0.78773,2030.7,2030.6,3.2078]
[1742438535270,1.42703,2030.7,2030.6,3.2078]
[1742438536371,0.78777,2030.6,2030.5,1.2799]
[1742438536569,2.75557,2030.6,2030.5,0.7878]
[1742438537171,2.75557,2030.6,2030.5,2.0677]
[1742438538474,2.75557,2030.6,2030.5,1.2799]
[1742438539879,2.75557,2030.6,2030.3,48.6143]
[1742438539880,0.78784,2030.4,2030.3,49.40216]
[1742438540074,0.78784,2030.4,2030.3,47.56086]
[1742438540275,0.78784,2030.4,2030.3,5.973]